fUST/lending_fUST_20250626
["ID","MTS","AMOUNT","RATE_DAILY","PERIOD"]
[367634654,1750883442711,-598.15256478,0.00016712,2]
[367634656,1750883442720,-222.28,0.00016712,2]
[367634657,1750883442730,-400.84,0.00016712,2]
[367634660,1750883442739,-460.0,0.00016712,2]
[367634662,1750883442748,-471.23,0.00016712,2]
[367634664,1750883442757,-1245.95,0.00016712,2]
[367634665,1750883442767,-582.36,0.00016712,2]
[367634667,1750883442784,-460.0,0.00016712,2]
[367634670,1750883442794,-870.34,0.00016712,2]
[367634671,1750883442803,-1411.06,0.00016712,2]
[367634672,1750883442812,-487.74,0.00016712,2]
[367634673,1750883442821,-1781.12,0.00016712,2]
[367634674,1750883442830,-605.11965153,0.00016712,2]
[367634675,1750883442839,-196.56,0.00016712,2]
[367634676,1750883442848,-562.44,0.00016712,2]
[367634677,1750883442857,-959.57,0.00016712,2]
[367634678,1750883442867,-497.58,0.00016712,2]
[367634679,1750883442876,-460.0,0.00016712,2]
[367634680,1750883442885,-460.0,0.00016712,2]
[367634681,1750883442894,-460.0,0.00016712,2]
[367634682,1750883442903,-460.0,0.00016712,2]
[367634683,1750883442912,-460.0,0.00016712,2]
[367634684,1750883442921,-460.0,0.00016712,2]
[367634685,1750883442930,-460.0,0.00016712,2]
[367634686,1750883442939,-460.0,0.00016712,2]
[367634687,1750883442948,-460.0,0.00016712,2]
[367634688,1750883442957,-460.0,0.00016712,2]
[367634689,1750883442966,-460.0,0.00016712,2]
[367634690,1750883442975,-460.0,0.00016712,2]
[367634691,1750883442987,-626.53,0.00016712,2]
[367634692,1750883442997,-789.66,0.00016712,2]
[367634693,1750883443006,-1621.29,0.00016712,2]
[367634694,1750883443015,-728.24,0.00016712,2]
[367634695,1750883443025,-460.0,0.00016712,2]
[367634697,1750883443034,-2138.56,0.00016712,2]
[367634699,1750883443043,-460.0,0.00016712,2]
[367634701,1750883443052,-460.0,0.00016712,2]
[367634703,1750883443061,-460.0,0.00016712,2]
[367634705,1750883443071,-460.0,0.00016712,2]
[367634707,1750883443080,-615.17,0.00016712,2]
[367634709,1750883443089,-544.8978947,0.00016712,2]
[367634711,1750883443098,-460.0,0.00016712,2]
[367634713,1750883443107,-460.0,0.00016712,2]
[367634715,1750883443116,-460.0,0.00016712,2]
[367634717,1750883443126,-714.16,0.00016712,2]
[367634719,1750883443135,-460.0,0.00016712,2]
[367634721,1750883443145,-1687.17,0.00016712,2]
[367634723,1750883443154,-460.0,0.00016712,2]
[367634725,1750883443164,-460.0,0.00016712,2]
[367634727,1750883443174,-329.53,0.00016712,2]
[367634729,1750883443183,-460.0,0.00016712,2]
[367634731,1750883443192,-460.0,0.00016712,2]
[367634733,1750883443201,-460.0,0.00016712,2]
[367634737,1750883443210,-460.0,0.00016712,2]
[367634739,1750883443219,-460.0,0.00016712,2]
[367634741,1750883443228,-517.24,0.00016712,2]
[367634743,1750883443237,-998.06,0.00016712,2]
[367634746,1750883443246,-460.0,0.00016712,2]
[367634750,1750883443256,-460.0,0.00016712,2]
[367634754,1750883443265,-466.75434873,0.00016712,2]
[367634756,1750883443274,-460.0,0.00016712,2]
[367634758,1750883443283,-732.81,0.00016712,2]
[367634761,1750883443296,-1757.1,0.00016712,2]
[367634765,1750883443305,-460.0,0.00016712,2]
[367634768,1750883443314,-598.59,0.00016712,2]
[367634771,1750883443323,-1016.83,0.00016712,2]
[367634774,1750883443333,-2753.57063975,0.000169,2]
[367634777,1750883443342,-460.0,0.00016986,2]
[367634780,1750883443350,-460.0,0.00016986,2]
[367634783,1750883443359,-460.0,0.00016986,2]
[367634786,1750883443368,-487.74873008,0.00016986,2]
[367634789,1750883443378,-531.57,0.00016986,2]
[367634792,1750883443387,-460.0,0.00016986,2]
[367634795,1750883443396,-460.0,0.00016986,2]
[367634796,1750883443405,-460.0,0.00016986,2]
[367634798,1750883443414,-460.0,0.00016986,2]
[367634801,1750883443423,-460.0,0.00016986,2]
[367634803,1750883443433,-460.0,0.00016986,2]
[367634805,1750883443444,-460.0,0.00016986,2]
[367634807,1750883443455,-460.0,0.00016986,2]
[367634809,1750883443464,-460.0,0.00016986,2]
[367634811,1750883443478,-460.0,0.00016986,2]
[367634813,1750883443487,-460.0,0.00016986,2]
[367634815,1750883443496,-460.0,0.00016986,2]
[367634817,1750883443506,-231.97456473,0.00016986,2]
[367634819,1750883443515,-541.43,0.00016986,2]
[367634821,1750883443525,-460.0,0.00016986,2]
[367634823,1750883443534,-550.63,0.00016986,2]
[367634825,1750883443543,-460.0,0.00016986,2]
[367634827,1750883443552,-202.4,0.00016986,2]
[367634829,1750883443561,-460.0,0.00016986,2]
[367634831,1750883443570,-460.0,0.00016986,2]
[367634833,1750883443579,-460.0,0.00016986,2]
[367634835,1750883443588,-460.0,0.00016986,2]
[367634837,1750883443597,-460.0,0.00016986,2]
[367634839,1750883443607,-460.0,0.00016986,2]
[367634841,1750883443616,-460.0,0.00016986,2]
[367634843,1750883443625,-460.0,0.00016986,2]
[367634845,1750883443635,-460.0,0.00016986,2]
[367634847,1750883443644,-460.0,0.00016986,2]
[367634849,1750883443654,-460.0,0.00016986,2]
[367634851,1750883443664,-460.0,0.00016986,2]
[367634853,1750883443673,-460.0,0.00016986,2]
[367634855,1750883443683,-460.0,0.00016986,2]
[367634857,1750883443692,-460.0,0.00016986,2]
[367634859,1750883443702,-520.62,0.00016986,2]
[367634861,1750883443711,-460.0,0.00016986,2]
[367634863,1750883443720,-460.0,0.00016986,2]
[367634865,1750883443729,-460.0,0.00016986,2]
[367634867,1750883443738,-460.0,0.00016986,2]
[367634869,1750883443748,-460.0,0.00016986,2]
[367634871,1750883443757,-460.0,0.00016986,2]
[367634873,1750883443766,-1598.11,0.00016986,2]
[367634896,1750883443913,-460.0,0.00016986,2]
[367634899,1750883443939,-460.0,0.00016986,2]
[367634901,1750883443948,-460.0,0.00016986,2]
[367634903,1750883443958,-460.0,0.00016986,2]
[367634905,1750883443967,-460.0,0.00016986,2]
[367634907,1750883443975,-460.0,0.00016986,2]
[367634909,1750883443984,-460.0,0.00016986,2]
[367634911,1750883443993,-460.0,0.00016986,2]
[367634913,1750883444003,-460.0,0.00016986,2]
[367634915,1750883444012,-460.0,0.00016986,2]
[367634917,1750883444021,-460.0,0.00016986,2]
[367634919,1750883444030,-460.0,0.00016986,2]
[367634921,1750883444039,-2118.26,0.00016986,2]
[367634923,1750883444048,-1475.89,0.00016986,2]
[367634925,1750883444057,-460.0,0.00016986,2]
[367634927,1750883444066,-460.0,0.00016986,2]
[367634929,1750883444076,-502.22,0.00016986,2]
[367634931,1750883444085,-460.0,0.00016986,2]
[367634933,1750883444094,-460.0,0.00016986,2]
[367634935,1750883444103,-460.0,0.00016986,2]
[367634937,1750883444112,-460.0,0.00016986,2]
[367634939,1750883444121,-460.0,0.00016986,2]
[367634941,1750883444131,-460.0,0.00016986,2]
[367634943,1750883444140,-460.0,0.00016986,2]
[367634945,1750883444150,-645.95,0.00016986,2]
[367634947,1750883444159,-460.0,0.00016986,2]
[367634949,1750883444168,-460.0,0.00016986,2]
[367634951,1750883444177,-460.0,0.00016986,2]
[367634953,1750883444186,-460.0,0.00016986,2]
[367634955,1750883444195,-460.0,0.00016986,2]
[367634957,1750883444205,-2314.26,0.00016986,2]
[367634959,1750883444214,-460.0,0.00016986,2]
[367634961,1750883444222,-460.0,0.00016986,2]
[367634963,1750883444231,-460.0,0.00016986,2]
[367634965,1750883444240,-466.12,0.00016986,2]
[367634967,1750883444249,-460.0,0.00016986,2]
[367634969,1750883444258,-460.0,0.00016986,2]
[367634971,1750883444267,-460.0,0.00016986,2]
[367634973,1750883444276,-2042.55,0.00016986,2]
[367634975,1750883444285,-460.0,0.00016986,2]
[367634977,1750883444295,-490.34,0.00016986,2]
[367634979,1750883444304,-179.67,0.00016986,2]
[367634981,1750883444313,-4220.78,0.00016986,2]
[367634983,1750883444322,-491.83,0.00016986,2]
[367634985,1750883444331,-1117.43,0.00016986,2]
[367634987,1750883444341,-2798.98,0.00016986,2]
[367634989,1750883444350,-460.0,0.00016986,2]
[367634991,1750883444359,-471.23,0.00016986,2]
[367634993,1750883444368,-1245.95,0.00016986,2]
[367634995,1750883444377,-582.36,0.00016986,2]
[367634997,1750883444386,-460.0,0.00016986,2]
[367634999,1750883444396,-870.34,0.00016986,2]
[367635001,1750883444405,-1411.06,0.00016986,2]
[367635003,1750883444414,-487.74,0.00016986,2]
[367635005,1750883444423,-1781.12,0.00016986,2]
[367635007,1750883444432,-562.44,0.00016986,2]
[367635009,1750883444441,-959.57,0.00016986,2]
[367635011,1750883444450,-497.58,0.00016986,2]
[367635013,1750883444460,-460.0,0.00016986,2]
[367635015,1750883444469,-460.0,0.00016986,2]
[367635017,1750883444478,-460.0,0.00016986,2]
[367635019,1750883444487,-460.0,0.00016986,2]
[367635021,1750883444496,-460.0,0.00016986,2]
[367635023,1750883444505,-460.0,0.00016986,2]
[367635025,1750883444514,-460.0,0.00016986,2]
[367635027,1750883444523,-460.0,0.00016986,2]
[367635029,1750883444532,-460.0,0.00016986,2]
[367635031,1750883444542,-460.0,0.00016986,2]
[367635033,1750883444551,-626.53,0.00016986,2]
[367635035,1750883444559,-789.66,0.00016986,2]
[367635037,1750883444568,-1621.29,0.00016986,2]
[367635039,1750883444578,-728.24,0.00016986,2]
[367635041,1750883444587,-460.0,0.00016986,2]
[367635043,1750883444596,-2138.56,0.00016986,2]
[367635045,1750883444606,-364.85,0.00016986,2]
[367635047,1750883444615,-460.0,0.00016986,2]
[367635049,1750883444624,-460.0,0.00016986,2]
[367635051,1750883444633,-460.0,0.00016986,2]
[367635053,1750883444642,-615.17,0.00016986,2]
[367635055,1750883444652,-460.0,0.00016986,2]
[367635057,1750883444661,-460.0,0.00016986,2]
[367635059,1750883444670,-460.0,0.00016986,2]
[367635061,1750883444679,-714.16,0.00016986,2]
[367635063,1750883444688,-460.0,0.00016986,2]
[367635065,1750883444698,-1687.17,0.00016986,2]
[367635067,1750883444709,-460.0,0.00016986,2]
[367635069,1750883444718,-304.32672473,0.00016986,2]
[367635071,1750883444727,-460.0,0.00016986,2]
[367635073,1750883444736,-460.0,0.00016986,2]
[367635075,1750883444745,-441.39477915,0.00016986,2]
[367635077,1750883444754,-460.0,0.00016986,2]
[367635079,1750883444763,-566.99674788,0.00016986,2]
[367635081,1750883444772,-517.24,0.00016986,2]
[367635083,1750883444785,-998.06,0.00016986,2]
[367635085,1750883444793,-460.0,0.00016986,2]
[367635087,1750883444802,-460.0,0.00016986,2]
[367635089,1750883444811,-460.0,0.00016986,2]
[367635091,1750883444821,-732.81,0.00016986,2]
[367635093,1750883444830,-1757.1,0.00016986,2]
[367635095,1750883444839,-460.0,0.00016986,2]
[367635097,1750883444848,-598.59,0.00016986,2]
[367635099,1750883444857,-3406.81518668,0.00017,2]
[367635101,1750883444866,-1134.94066406,0.00017092,2]
[367635103,1750883444875,-500.0,0.00017095,2]
[367635105,1750883444885,-168.67966396,0.00017095,2]
[367635107,1750883444894,-151.0,0.00017095,2]
[367635109,1750883444904,-151.0,0.00017095,2]
[367635111,1750883444913,-500.0,0.00017095,2]
[367635113,1750883444922,-500.0,0.00017122,2]
[367635115,1750883444932,-151.0,0.00017122,2]
[367635117,1750883444941,-254.80061498,0.00017122,2]
[367635119,1750883444950,-500.0,0.00017122,2]
[367635121,1750883444959,-151.0,0.00017139,2]
[367635123,1750883444968,-151.0,0.00017139,2]
[367635125,1750883444978,-567.97560925,0.0001715,2]
[367635127,1750883444987,-500.0,0.0001715,2]
[367635129,1750883444996,-151.0,0.0001715,2]
[367635131,1750883445005,-500.0,0.0001715,2]
[367635133,1750883445014,-500.0,0.0001715,2]
[367635135,1750883445023,-500.0,0.0001715,2]
[367635137,1750883445033,-500.0,0.0001715,2]
[367635139,1750883445042,-500.0,0.0001715,2]
[367635141,1750883445051,-500.0,0.0001715,2]
[367635143,1750883445060,-151.0,0.0001715,2]
[367635145,1750883445069,-151.0,0.0001715,2]
[367635147,1750883445078,-151.0,0.0001715,2]
[367635149,1750883445087,-151.0,0.0001715,2]
[367635152,1750883445096,-151.0,0.0001715,2]
[367635153,1750883445106,-151.0,0.0001715,2]
[367635155,1750883445115,-151.0,0.0001715,2]
[367635157,1750883445124,-500.0,0.0001715,2]
[367635160,1750883445133,-151.0,0.0001715,2]
[367635162,1750883445142,-151.8409273,0.0001715,2]
[367635164,1750883445152,-151.0,0.0001715,2]
[367635166,1750883445161,-151.0,0.0001715,2]
[367635168,1750883445170,-152.14900843,0.0001715,2]
[367635170,1750883445179,-151.0,0.0001715,2]
[367635172,1750883445188,-500.0,0.0001715,2]
[367635174,1750883445196,-500.0,0.0001715,2]
[367635176,1750883445205,-500.0,0.0001715,2]
[367635178,1750883445214,-500.0,0.0001715,2]
[367635179,1750883445223,-2753.57063971,0.00017176,2]
[367635181,1750883445233,-412.78763217,0.00017176,2]
[367635183,1750883445242,-500.0,0.00017176,2]
[367635185,1750883445250,-502.89171688,0.00017176,2]
[367635187,1750883445259,-500.0,0.00017176,2]
[367635189,1750883445268,-500.0,0.00017176,2]
[367635191,1750883445277,-500.0,0.00017176,2]
[367635193,1750883445286,-500.0,0.00017176,2]
[367635195,1750883445295,-500.0,0.00017177,2]
[367635197,1750883445304,-151.0,0.00017177,2]
[367635199,1750883445312,-500.0,0.00017177,2]
[367635201,1750883445321,-500.0,0.00017177,2]
[367635203,1750883445330,-500.0,0.00017177,2]
[367635205,1750883445340,-500.0,0.00017177,2]
[367635207,1750883445349,-500.0,0.00017177,2]
[367635209,1750883445358,-500.0,0.00017177,2]
[367635212,1750883445367,-151.0,0.00017177,2]
[367635214,1750883445377,-151.0,0.00017177,2]
[367635216,1750883445386,-151.0,0.00017177,2]
[367635218,1750883445395,-151.0,0.00017177,2]
[367635220,1750883445405,-246.01127713,0.00017177,2]
[367635222,1750883445414,-151.0,0.00017177,2]
[367635224,1750883445423,-151.0,0.00017177,2]
[367635226,1750883445433,-500.0,0.00017177,2]
[367635228,1750883445443,-151.0,0.00017177,2]
[367635230,1750883445452,-151.0,0.00017177,2]
[367635232,1750883445461,-151.0,0.00017177,2]
[367635234,1750883445470,-151.0,0.00017177,2]
[367635236,1750883445479,-614.58157554,0.00017177,2]
[367635238,1750883445488,-500.0,0.00017177,2]
[367635240,1750883445497,-500.0,0.00017177,2]
[367635242,1750883445507,-500.0,0.00017177,2]
[367635244,1750883445516,-500.0,0.00017177,2]
[367635246,1750883445526,-500.0,0.00017185,2]
[367635248,1750883445535,-500.0,0.00017188,2]
[367635250,1750883445544,-500.0,0.00017188,2]
[367635252,1750883445553,-500.0,0.00017188,2]
[367635254,1750883445562,-500.0,0.00017194,2]
[367635256,1750883445571,-500.0,0.00017194,2]
[367635258,1750883445580,-500.0,0.00017194,2]
[367635260,1750883445590,-500.87736512,0.00017194,2]
[367635262,1750883445600,-500.0,0.00017205,2]
[367635264,1750883445610,-259.55586604,0.00017205,2]
[367635266,1750883445620,-500.0,0.00017205,2]
[367635268,1750883445629,-500.0,0.00017205,2]
[367635270,1750883445639,-500.0,0.00017205,2]
[367635272,1750883445648,-500.0,0.00017205,2]
[367635275,1750883445658,-500.0,0.00017205,2]
[367635277,1750883445667,-500.0,0.00017205,2]
[367635279,1750883445677,-151.0,0.00017205,2]
[367635281,1750883445686,-151.0,0.00017205,2]
[367635283,1750883445695,-151.0,0.00017205,2]
[367635285,1750883445704,-151.0,0.00017205,2]
[367635287,1750883445713,-151.0,0.00017205,2]
[367635289,1750883445723,-151.0,0.00017205,2]
[367635291,1750883445732,-500.0,0.00017205,2]
[367635293,1750883445742,-198.76709495,0.00017205,2]
[367635295,1750883445751,-151.0,0.00017205,2]
[367635297,1750883445761,-151.0,0.00017205,2]
[367635299,1750883445770,-249.41208528,0.00017205,2]
[367635301,1750883445784,-191.01076463,0.00017205,2]
[367635303,1750883445793,-500.0,0.00017205,2]
[367635305,1750883445803,-500.0,0.00017205,2]
[367635306,1750883445812,-500.0,0.00017232,2]
[367635307,1750883445822,-500.0,0.00017232,2]
[367635308,1750883445831,-500.0,0.00017232,2]
[367635309,1750883445840,-500.0,0.00017232,2]
[367635310,1750883445849,-151.0,0.00017232,2]
[367635311,1750883445859,-292.00950483,0.00017232,2]
[367635312,1750883445868,-192.4422019,0.00017232,2]
[367635313,1750883445879,-151.0,0.00017232,2]
[367635314,1750883445888,-295.78848359,0.00017232,2]
[367635315,1750883445900,-151.0,0.00017232,2]
[367635316,1750883445915,-164.70744157,0.00017232,2]
[367635317,1750883445927,-500.0,0.00017232,2]
[367635318,1750883445936,-500.0,0.00017232,2]
[367635319,1750883445945,-484.86817316,0.00017251,2]
[367635320,1750883445954,-207.4,0.00017252,2]
[367635321,1750883445963,-500.0,0.00017252,2]
[367635322,1750883445972,-618.66015837,0.00017252,2]
[367635323,1750883445981,-5000.0,0.00017252,2]
[367635324,1750883445990,-5526.19087151,0.00017252,2]
[367635325,1750883446000,-151.0,0.00017252,2]
[367635326,1750883446010,-151.0,0.00017252,2]
[367635327,1750883446019,-1003.75921828,0.00017258,2]
[367635328,1750883446029,-526.97,0.0001726,2]
[367635329,1750883446038,-214.96199244,0.0001726,2]
[367635330,1750883446048,-151.00261681,0.0001726,2]
[367635331,1750883446057,-225.16333721,0.0001726,2]
[367635332,1750883446067,-500.0,0.0001726,2]
[367635333,1750883446076,-500.0,0.0001726,2]
[367635334,1750883446086,-280.78734991,0.0001726,2]
[367635335,1750883446095,-460.0,0.0001726,2]
[367635336,1750883446104,-460.0,0.0001726,2]
[367635337,1750883446113,-451.85,0.0001726,2]
[367635338,1750883446123,-282.11421347,0.0001726,2]
[367635339,1750883446132,-460.0,0.0001726,2]
[367635340,1750883446141,-284.08,0.0001726,2]
[367635341,1750883446155,-460.0,0.0001726,2]
[367635342,1750883446164,-539.46,0.0001726,2]
[367635343,1750883446175,-460.0,0.0001726,2]
[367635344,1750883446184,-460.0,0.0001726,2]
[367635345,1750883446194,-426.38547621,0.0001726,2]
[367635346,1750883446203,-550.63,0.0001726,2]
[367635347,1750883446212,-460.0,0.0001726,2]
[367635348,1750883446222,-460.0,0.0001726,2]
[367635349,1750883446231,-460.0,0.0001726,2]
[367635351,1750883446240,-460.0,0.0001726,2]
[367635353,1750883446249,-460.0,0.0001726,2]
[367635355,1750883446259,-460.0,0.0001726,2]
[367635357,1750883446268,-482.23,0.0001726,2]
[367635359,1750883446277,-460.0,0.0001726,2]
[367635361,1750883446287,-514.41,0.0001726,2]
[367635363,1750883446296,-460.0,0.0001726,2]
[367635365,1750883446305,-460.0,0.0001726,2]
[367635367,1750883446315,-211.71794713,0.0001726,2]
[367635369,1750883446325,-460.0,0.0001726,2]
[367635371,1750883446335,-520.62,0.0001726,2]
[367635373,1750883446344,-460.0,0.0001726,2]
[367635375,1750883446352,-460.0,0.0001726,2]
[367635377,1750883446362,-460.0,0.0001726,2]
[367635379,1750883446371,-460.0,0.0001726,2]
[367635380,1750883446380,-460.0,0.0001726,2]
[367635381,1750883446389,-460.0,0.0001726,2]
[367635382,1750883446399,-1598.11,0.0001726,2]
[367635383,1750883446409,-460.0,0.0001726,2]
[367635384,1750883446418,-460.0,0.0001726,2]
[367635385,1750883446427,-460.0,0.0001726,2]
[367635386,1750883446437,-460.0,0.0001726,2]
[367635387,1750883446446,-460.0,0.0001726,2]
[367635388,1750883446455,-220.21,0.0001726,2]
[367635389,1750883446464,-460.0,0.0001726,2]
[367635390,1750883446473,-460.0,0.0001726,2]
[367635391,1750883446482,-352.24067637,0.0001726,2]
[367635392,1750883446491,-460.0,0.0001726,2]
[367635393,1750883446501,-453.52775293,0.0001726,2]
[367635394,1750883446510,-2118.26,0.0001726,2]
[367635395,1750883446519,-1475.89,0.0001726,2]
[367635396,1750883446528,-460.0,0.0001726,2]
[367635397,1750883446538,-460.0,0.0001726,2]
[367635398,1750883446547,-502.22,0.0001726,2]
[367635399,1750883446557,-460.0,0.0001726,2]
[367635400,1750883446566,-460.0,0.0001726,2]
[367635401,1750883446575,-460.0,0.0001726,2]
[367635402,1750883446584,-460.0,0.0001726,2]
[367635403,1750883446594,-418.44,0.0001726,2]
[367635405,1750883446603,-460.0,0.0001726,2]
[367635407,1750883446611,-645.95,0.0001726,2]
[367635409,1750883446621,-460.0,0.0001726,2]
[367635411,1750883446631,-460.0,0.0001726,2]
[367635414,1750883446641,-380.0,0.0001726,2]
[367635415,1750883446650,-460.0,0.0001726,2]
[367635417,1750883446659,-460.0,0.0001726,2]
[367635420,1750883446668,-2314.26,0.0001726,2]
[367635422,1750883446677,-460.0,0.0001726,2]
[367635423,1750883446686,-460.0,0.0001726,2]
[367635426,1750883446696,-460.0,0.0001726,2]
[367635427,1750883446705,-466.12,0.0001726,2]
[367635428,1750883446714,-460.0,0.0001726,2]
[367635429,1750883446723,-460.0,0.0001726,2]
[367635430,1750883446733,-2042.55,0.0001726,2]
[367635431,1750883446742,-530.44,0.0001726,2]
[367635432,1750883446751,-490.34,0.0001726,2]
[367635433,1750883446760,-4220.78,0.0001726,2]
[367635434,1750883446769,-491.83,0.0001726,2]
[367635435,1750883446780,-1117.43,0.0001726,2]
[367635436,1750883446789,-2798.98,0.0001726,2]
[367635437,1750883446799,-460.0,0.0001726,2]
[367635438,1750883446808,-471.23,0.0001726,2]
[367635439,1750883446817,-1245.95,0.0001726,2]
[367635440,1750883446827,-582.36,0.0001726,2]
[367635441,1750883446837,-460.0,0.0001726,2]
[367635442,1750883446846,-870.34,0.0001726,2]
[367635443,1750883446855,-1411.06,0.0001726,2]
[367635444,1750883446865,-487.74,0.0001726,2]
[367635445,1750883446874,-1781.12,0.0001726,2]
[367635446,1750883446883,-562.44,0.0001726,2]
[367635447,1750883446893,-959.57,0.0001726,2]
[367635448,1750883446903,-497.58,0.0001726,2]
[367635449,1750883446912,-460.0,0.0001726,2]
[367635450,1750883446921,-460.0,0.0001726,2]
[367635451,1750883446931,-460.0,0.0001726,2]
[367635452,1750883446941,-460.0,0.0001726,2]
[367635453,1750883446950,-460.0,0.0001726,2]
[367635454,1750883446959,-460.0,0.0001726,2]
[367635455,1750883446969,-460.0,0.0001726,2]
[367635456,1750883447103,-460.0,0.0001726,2]
[367635457,1750883447112,-460.0,0.0001726,2]
[367635458,1750883447122,-460.0,0.0001726,2]
[367635459,1750883447132,-626.53,0.0001726,2]
[367635460,1750883447142,-789.66,0.0001726,2]
[367635461,1750883447152,-1621.29,0.0001726,2]
[367635462,1750883447161,-728.24,0.0001726,2]
[367635463,1750883447170,-460.0,0.0001726,2]
[367635464,1750883447179,-2138.56,0.0001726,2]
[367635465,1750883447189,-460.0,0.0001726,2]
[367635466,1750883447198,-460.0,0.0001726,2]
[367635467,1750883447207,-460.0,0.0001726,2]
[367635468,1750883447216,-615.17,0.0001726,2]
[367635469,1750883447226,-460.0,0.0001726,2]
[367635470,1750883447235,-460.0,0.0001726,2]
[367635471,1750883447245,-460.0,0.0001726,2]
[367635472,1750883447254,-714.16,0.0001726,2]
[367635473,1750883447263,-1687.17,0.0001726,2]
[367635474,1750883447273,-418.75110519,0.0001726,2]
[367635475,1750883447282,-386.28,0.0001726,2]
[367635476,1750883447291,-460.0,0.0001726,2]
[367635477,1750883447299,-517.24,0.0001726,2]
[367635478,1750883447309,-998.06,0.0001726,2]
[367635479,1750883447318,-460.0,0.0001726,2]
[367635480,1750883447327,-460.0,0.0001726,2]
[367635481,1750883447336,-732.81,0.0001726,2]
[367635482,1750883447346,-1757.1,0.0001726,2]
[367635483,1750883447355,-460.0,0.0001726,2]
[367635484,1750883447364,-598.59,0.0001726,2]
[367635485,1750883447374,-500.0,0.00017262,2]
[367635486,1750883447384,-12558.06783089,0.00017279,2]
[367635487,1750883447393,-160.0,0.00017279,2]
[367635488,1750883447403,-213.69531788,0.00017279,2]
[367635489,1750883447412,-160.0,0.00017279,2]
[367635490,1750883447422,-160.0,0.00017279,2]
[367635491,1750883447431,-425.18553072,0.00017279,2]
[367635492,1750883447440,-160.0,0.00017279,2]
[367635493,1750883447449,-160.0,0.00017279,2]
[367635494,1750883447459,-836.86812089,0.00017279,2]
[367635495,1750883447468,-230.22714675,0.00017279,2]
[367635496,1750883447477,-846.80634355,0.00017279,2]
[367635497,1750883447486,-160.0,0.00017281,2]
[367635498,1750883447495,-500.00000001,0.00017287,2]
[367635499,1750883447504,-500.0,0.00017287,2]
[367635500,1750883447513,-304.88004104,0.00017293,2]
[367635502,1750883447523,-151.0,0.00017332,2]
[367635504,1750883447532,-151.0,0.00017332,2]
[367635506,1750883447541,-176.42018452,0.00017373,2]
[367635508,1750883447550,-500.0,0.00017434,2]
[367635510,1750883447559,-500.0,0.00017434,2]
[367635512,1750883447567,-500.0,0.00017434,2]
[367635514,1750883447576,-500.0,0.00017434,2]
[367635516,1750883447585,-512.51280788,0.00017434,2]
[367635518,1750883447594,-500.0,0.00017434,2]
[367635520,1750883447603,-500.0,0.00017434,2]
[367635522,1750883447612,-500.0,0.00017434,2]
[367635524,1750883447622,-500.0,0.00017434,2]
[367635526,1750883447631,-502.55035468,0.00017434,2]
[367635528,1750883447640,-500.0,0.00017434,2]
[367635530,1750883447649,-500.0,0.00017434,2]